Cogmind - Beta 13 @@@ ROGUE MODE // 2024.08.02 @ 01:35:46 Player: CatgirlLyra Result: Destroyed by H-77 Assassin with High-powered Shotgun Performance ------------- Evolutions (7) 3500 Regions Visited (22) 4400 Robots Destroyed (286) 1430 Value Destroyed (12297) 12297 Prototype IDs (51) 1020 Alien Tech Used (2) 400 Bonus (6692) 6692 TOTAL SCORE: 29739 Bonus ------- High Alert Combat Kills 446 Follower Combat Kills 166 Met Data Miner 300 Met Warlord at Base 500 MAIN.C Attacked Warlord 500 Warlord Defense Kills 4996 Friendly Fire -216 Cogmind --------- Core Integrity 0/1300 Matter 254/300 Energy 43/100 System Corruption 32% Temperature Cool (0) Movement Core (50) Location -3/Research Parts ------- > --- POWER (3) -------- (None) > --- PROPULSION (6) --- (None) > --- UTILITY (9) ------ Improved Coolant Injector > --- WEAPON (3) ------- (None) > --- INVENTORY (5) ---- Huge Storage Unit Compact HERF Cannon Heavy Shock Bomb Launcher Peak State ------------ > --- POWER ------------ Reinforced Fission Core Light Antimatter Reactor Compact Particle Reactor > --- PROPULSION ------- Medium Treads Enhanced Armored Medium Treads Biometal Medium Treads Biometal Leg > --- UTILITY ---------- Experimental Cooling System Huge Storage Unit Enhanced Optical Array Improved Weapon Cycler Experimental Core Shielding Light Regenerative Plating Advanced Focal Shield Thermal Barrier Advanced Force Field > --- WEAPON ----------- Quantum Rifle Quantum Rifle Heavy Shock Bomb Launcher > --- INVENTORY -------- Advanced Heat Sink Improved Coolant Injector Advanced Coolant Injector Advanced Energy Well Compact Matter Pod Advanced Signal Interpreter Launcher Loader Improved Energy Mantle Point Defense Array Antimissile System Advanced Component Analysis Suite Compact Tesla Bomb Launcher Shock Maul [Rating: 141] Favorites ----------- Power Micro Fission Core Engine Improved Deuterium Engine Power Core Micro Fission Core Reactor Light Antimatter Reactor Propulsion Improved Treads Treads Improved Treads Leg Flexi-carbon Leg Wheel Armored Huge Wheel Hover Unit Antigrav System Flight Unit Cooled Nuclear Pulse Thruster Utility Advanced Targeting Computer Device Advanced Force Field Storage High-capacity Storage Unit Processor Advanced Targeting Computer Hackware Authchip [Armor] Protection Light Regenerative Plating Weapon Quantum Rifle Energy Gun Quantum Rifle Energy Cannon Disruptor Cannon Ballistic Gun Coil Gun Ballistic Cannon Hardcell Cannon Launcher Compact Tesla Bomb Launcher Special Weapon Welding Torch Impact Weapon Shock Maul Slashing Weapon Ripper Piercing Weapon Spear Special Melee Weapon Advanced Datajack Build | -11 -10 -10 -10 -9 -8 -7 -7 -7 -7 -6 -6 -5 -5 -5 -5 -4 -4 -4 -4 -4 -3 -3 ------- Run | Yrd Mat Min Exi Min Mat Fac Low Low Dat Pro Fac Fac Upp Upp Zhi Pro Fac Upp Upp War Pro Res Slots Evolved 14 | . . . . . 4 2 . . . . 2 2 . . . . 2 . . . . 2 Power 2 | . . . . . . . . . . . 1 1 . . . . . . . . . . Propulsion 4 | . . . . . 2 1 . . . . . 1 . . . . . . . . . . Utility 7 | . . . . . 2 1 . . . . 1 . . . . . 1 . . . . 2 Weapon 1 | . . . . . . . . . . . . . . . . . 1 . . . . . Parts Attached 428 | 8 11 3 1 19 36 58 2 9 3 12 28 37 11 20 10 7 40 22 10 32 23 26 Power 45 | 1 4 1 . 1 4 4 . . . 1 1 6 1 3 1 1 2 4 3 1 2 4 Engine 15 | 1 3 1 . 1 2 3 . . . 1 . 2 . . . . . . 1 . . . Core 21 | . 1 . . . 2 1 . . . . 1 4 1 3 . . 2 3 2 . 1 . Reactor 9 | . . . . . . . . . . . . . . . 1 1 . 1 . 1 1 4 Propulsion 98 | 3 3 1 . 6 12 17 . . . 4 5 11 4 2 2 4 7 2 2 4 3 6 Treads 58 | 2 3 1 . 2 6 14 . . . 4 3 2 4 2 . 3 2 2 1 2 2 3 Leg 15 | 1 . . . . 4 1 . . . . 1 . . . . 1 3 . 1 2 1 . Wheel 15 | . . . . 4 2 2 . . . . 1 4 . . . . 2 . . . . . Hover 7 | . . . . . . . . . . . . 5 . . . . . . . . . 2 Flight 3 | . . . . . . . . . . . . . . . 2 . . . . . . 1 Utility 125 | 2 1 1 1 5 11 16 . 2 . 1 4 12 1 1 5 . 20 7 3 12 11 9 Device 50 | 1 . . . 2 3 3 . 1 . . 1 11 . . . . 7 4 . 4 6 7 Storage 9 | 1 1 . 1 1 . 2 . . . . . . . . 1 . 1 . . . . 1 Processor 9 | . . 1 . . 1 1 . . . . 1 . . . . . 1 . 1 1 1 1 Hackware 7 | . . . . . . 2 . . . . . . . . . . 4 . . . 1 . Protection 50 | . . . . 2 7 8 . 1 . 1 2 1 1 1 4 . 7 3 2 7 3 . Artifact . | . . . . . . . . . . . . . . . . . . . . . . . Weapon 160 | 2 3 . . 7 9 21 2 7 3 6 18 8 5 14 2 2 11 9 2 15 7 7 Energy Gun 61 | . 2 . . 4 5 5 1 4 2 2 4 2 4 8 . . 2 4 1 7 2 2 Energy Cannon 12 | . . . . . . 4 . . . . . 1 . 2 2 1 . . . . . 2 Ballistic Gun 35 | 2 1 . . 1 1 8 . . . 1 10 2 . 1 . . 4 3 . 1 . . Ballistic Cannon 7 | . . . . . . . . . . . . . . . . . 2 . . 2 2 1 Launcher 26 | . . . . 1 2 3 1 2 1 3 1 1 . . . 1 2 1 1 5 . 1 Special Weapon 1 | . . . . . . 1 . . . . . . . . . . . . . . . . Impact Weapon 9 | . . . . 1 1 . . . . . . 1 1 3 . . . . . . 1 1 Slashing Weapon 7 | . . . . . . . . . . . 3 1 . . . . . 1 . . 2 . Piercing Weapon 1 | . . . . . . . . 1 . . . . . . . . . . . . . . Special Melee Weapon 1 | . . . . . . . . . . . . . . . . . 1 . . . . . Unidentified Prototypes 25 | . . . . 1 2 2 . . . . 2 3 . . 5 . 2 . . 6 . 2 Corrupted Parts 20 | . . . . . 1 2 . . . . . . 3 1 . 3 1 2 1 2 . 4 System Corruption 118 | . . . . . 2 8 . . . . . . 22 7 . 25 1 6 3 12 . 32 Parts Lost 114 | . 1 . . 10 8 3 . 2 . 7 9 17 2 5 . 1 10 5 . 10 3 21 Power 16 | . 1 . . . 1 . . . . 1 1 6 . . . . . 1 . . 1 4 Propulsion 47 | . . . . 3 5 1 . . . 3 6 5 2 2 . 1 5 2 . 5 1 6 Utility 30 | . . . . 4 1 1 . 1 . 1 1 4 . 1 . . 4 1 . 3 1 7 Weapon 21 | . . . . 3 1 1 . 1 . 2 1 2 . 2 . . 1 1 . 2 . 4 Highest Loss Streak 9 | . 1 . . 7 5 1 . 1 . 3 3 7 2 4 . 1 5 4 . 9 2 9 To Critical Strikes 2 | . . . . . . 1 . . . . . 1 . . . . . . . . . . Average Slot Usage (%) 91 | . 99 99 100 89 90 96 100 100 85 94 94 63 80 92 79 95 89 97 98 93 69 63 Engine 4 | . 8 12 14 14 4 4 7 7 7 7 5 5 5 2 . . . . . . . . Core 5 | . 5 1 . . 4 2 . . . . 6 3 4 9 15 5 5 9 10 6 6 5 Reactor 2 | . . . . . . . . . . . . . . . 1 10 9 5 5 5 5 2 Treads 21 | . 28 28 28 22 11 28 38 38 38 32 23 2 20 31 23 17 21 14 15 20 8 8 Leg 4 | . . . . . 14 5 . . . . 1 . . . . 1 1 13 13 8 3 2 Device 6 | . 1 . . 1 2 3 7 7 7 7 6 6 5 5 3 . 4 13 10 13 14 18 Storage 8 | . 26 17 14 15 9 7 7 7 7 7 6 5 5 5 5 5 5 5 5 5 5 2 Processor 10 | . . 10 14 . 8 10 15 15 15 15 20 17 17 17 17 17 10 10 10 9 5 3 Protection 7 | . . . . 4 14 15 7 7 7 7 6 1 4 4 6 11 13 6 9 7 6 5 Energy Gun 7 | . 5 14 14 14 7 3 14 14 1 13 3 2 9 9 . . 2 2 9 8 7 5 Ballistic Gun 6 | . 22 14 14 10 5 10 . . . . 9 1 . . . . 3 9 5 1 . . Naked Turns . | . . . . . . . . . . . . . . . . . . . . . . . Heaviest Build 200 | 14 54 56 51 93 63 76 63 62 62 63 74 98 84 93 91 96 163 163 172 200 182 168 Greatest Support 164 | 40 40 40 40 40 60 102 102 102 102 108 118 55 92 143 97 164 164 93 109 136 63 98 Greatest Overweight (x) 22 | 1 1 1 1 9 3 3 . . . . 2 22 2 . . 1 10 4 1 4 4 5 Average Overweight (x) . | . . 1 1 1 . . . . . . . 3 . . . . 2 1 1 1 2 . Largest Inventory Capacity 25 | 8 20 20 20 20 20 20 20 20 20 20 20 20 20 20 20 20 25 25 25 25 25 25 Average Capacity 21 | 7 19 20 20 20 20 20 20 20 20 20 20 20 20 20 20 20 22 25 25 25 25 18 Most Carried 25 | 6 20 20 20 20 20 20 20 20 20 20 20 20 20 20 20 20 25 25 25 25 23 14 Average Carried 20 | 4 17 19 20 18 19 19 20 19 19 19 19 18 17 19 19 20 21 24 24 23 17 10 Final Capacity 25 | 8 20 20 20 20 20 20 20 20 20 20 20 20 20 20 20 20 25 25 25 25 25 5 Final Carried 25 | 6 20 20 20 20 19 20 20 20 20 20 18 19 20 20 20 20 25 25 24 20 13 3 Class Distribution -------------------- 40% | Scavenger-Mutant 22% | Mutant 21% | Scavenger-Tank 5% | Scavenger-Gunner 5% | Fabricator-Mutant Dominant Class ---------------- Mutant | -10/Materials Scavenger-Mutant | -10/Mines Scavenger-Mutant | -10/Exiles Mutant | -9/Mines Scavenger-Mutant | -8/Materials Fabricator-Mutant | -7/Factory Scavenger-Mutant | -7/Lower Caves Scavenger-Mutant | -7/Lower Caves Mutant | -7/Data Miner Scavenger-Mutant | -6/Proximity Caves Scavenger-Mutant | -6/Factory Scavenger-Mutant | -5/Factory Scavenger-Mutant | -5/Upper Caves Scavenger-Mutant | -5/Upper Caves Scavenger-Mutant | -5/Zhirov Scavenger-Mutant | -4/Proximity Caves Scavenger-Tank | -4/Factory Scavenger-Gunner | -4/Upper Caves Scavenger-Tank | -4/Upper Caves Scavenger-Tank | -4/Warlord Mutant | -3/Proximity Caves Derelict-Mutant | -3/Research Resources | -11 -10 -10 -10 -9 -8 -7 -7 -7 -7 -6 -6 -5 -5 -5 -5 -4 -4 -4 -4 -4 -3 -3 ----------- Run | Yrd Mat Min Exi Min Mat Fac Low Low Dat Pro Fac Fac Upp Upp Zhi Pro Fac Upp Upp War Pro Res Matter Collected 8642 | 306 520 20 20 247 497 1598 145 197 . 239 688 508 119 256 . 190 1120 438 484 286 569 195 Remotely . | . . . . . . . . . . . . . . . . . . . . . . . Salvage Created 15359 | 104 814 . . 348 1107 2733 162 450 . 626 949 832 135 242 . 137 1607 838 475 2126 758 916 Parts 672 | 8 47 . . 12 47 151 15 23 . 25 46 45 7 23 . 9 68 23 18 64 14 27 Haulers Intercepted 12 | . 2 . . . 1 5 . . . . 1 . . . . . 2 . . . . 1 Recyclers Shooed 19 | . 1 . . . 5 4 . . . . 3 1 . . . . 5 . . . . . Parts Field Recycled . | . . . . . . . . . . . . . . . . . . . . . . . Retrieved Matter . | . . . . . . . . . . . . . . . . . . . . . . . Parts Self-Destructed 87 | . . . . . . . 9 11 . 14 . . . 10 . 1 . 16 12 . 14 . Prevented 49 | . . . . . . . . 8 . 1 . . 5 10 . 4 . 12 9 . . . Kills | -11 -10 -10 -10 -9 -8 -7 -7 -7 -7 -6 -6 -5 -5 -5 -5 -4 -4 -4 -4 -4 -3 -3 ------- Run | Yrd Mat Min Exi Min Mat Fac Low Low Dat Pro Fac Fac Upp Upp Zhi Pro Fac Upp Upp War Pro Res Combat Hostiles Destroyed 249 | . 15 . . 12 18 46 8 12 . 16 14 13 1 3 . 5 19 8 5 35 6 13 Melee 8 | . . . . . 4 . . 2 . . . 2 . . . . . . . . . . Guns 117 | . 15 . . 8 7 30 1 4 . 11 11 3 . 2 . . 5 5 4 2 5 4 Cannons 19 | . . . . . . 5 . . . . . 5 . . . . 7 . . 2 . . AOE 84 | . . . . 4 6 9 7 5 . 5 3 3 . . . 5 3 2 1 24 . 7 Classes Destroyed 24 | 2 6 . . 3 1 3 . . . 2 . . 1 1 . . . . 1 3 . 1 Worker 7 | . 1 . . 1 3 2 . . . . . . . . . . . . . . . . Builder 12 | . 1 . . . 1 7 . . . . 1 2 . . . . . . . . . . Tunneler 2 | 2 . . . . . . . . . . . . . . . . . . . . . . Hauler 12 | . 2 . . . 1 5 . . . . 1 . . . . . 2 . . . . 1 Recycler 19 | 1 1 . . 1 6 6 . . . . . 1 . . . . 3 . . . . . Minesweeper 1 | . . . . . . . . . . . . . . . . . . . 1 . . . Drone 2 | . . . . . . . . . . 2 . . . . . . . . . . . . Watcher 4 | . 3 . . . . 1 . . . . . . . . . . . . . . . . Swarmer 49 | . 3 . . . 7 3 4 3 . 4 3 3 . . . 5 4 1 1 3 . 5 Grunt 101 | . 12 . . 2 8 12 3 7 . 1 7 2 . . . . 5 7 3 24 3 5 Brawler 6 | . . . . 1 . 3 . 1 . . 1 . . . . . . . . . . . Duelist 4 | . . . . . . 2 1 . . . . . . . . . . . . . . 1 Protector 1 | . . . . . . . . . . . . . . . . . . . . 1 . . Sentry 20 | . . . . . 3 7 . . . 1 . 3 1 . . . 2 . 1 . 1 1 Demolisher 2 | . . . . 2 . . . . . . . . . . . . . . . . . . Hunter 12 | . . . . . . 2 . 1 . 2 2 1 . . . . 2 . . . 2 . Programmer 18 | . . . . . . 3 . . . . 1 4 . 2 . . 6 . . 2 . . Heavy 1 | . . . . . . . . . . . . . . . . . . . . . . 1 Behemoth 1 | . . . . . . . . . . . . . . 1 . . . . . . . . Striker 3 | . . . . . . . . . . . . . . . . . . . . 3 . . Executioner 2 | . . . . . . . . . . . . . . . . . . . . 2 . . Decomposer 1 | . . . . . . . . . . . . . . 1 . . . . . . . . Samaritan 1 | . . . . . . . . . . . . . 1 . . . . . . . . . Assembled 21 | . . . . 7 . 14 . . . . . . . . . . . . . . . . Butcher 5 | . . . . . . . . . . 5 . . . . . . . . . . . . Mutant 2 | . . . . . . . . . . 1 . . . . . . . 1 . . . . Best Kill Streak 15 | 3 4 . . 7 7 15 8 4 . 6 3 3 1 2 . 5 3 5 3 14 3 8 Combat Bots Only 14 | . 3 . . 7 5 14 8 4 . 6 3 3 1 2 . 5 3 5 3 14 3 7 Max Kills in Single Turn 10 | 1 1 . . 3 3 5 3 1 . 2 1 2 1 1 . 4 2 1 1 10 1 3 Gunslinging 1 | . . . . . . 1 . . . . . . . . . . . . . . . . Exploded 10 | . . . . 3 3 3 3 1 . 2 1 2 . . . 4 2 1 1 10 . 3 Melee 1 | . . . . . 1 . . 1 . . . 1 . . . . . . . . . . Uniques/NPCs Destroyed . | . . . . . . . . . . . . . . . . . . . . . . . Combat | -11 -10 -10 -10 -9 -8 -7 -7 -7 -7 -6 -6 -5 -5 -5 -5 -4 -4 -4 -4 -4 -3 -3 -------- Run | Yrd Mat Min Exi Min Mat Fac Low Low Dat Pro Fac Fac Upp Upp Zhi Pro Fac Upp Upp War Pro Res Hostile Shots Fired 2435 | . 71 . . 60 99 461 8 66 . 84 163 137 8 96 . 13 189 106 21 320 110 423 Missed 795 | . 16 . . 11 32 175 2 13 . 26 36 40 . 33 . 3 61 25 7 107 36 172 Damage Taken 25416 | . 618 . . 1292 1292 3441 121 863 . 1010 2068 1884 202 1000 . 163 2809 951 130 2939 587 4046 Core 3324 | . 67 . . 155 44 346 14 39 . 58 225 339 . 87 . . 178 63 11 350 32 1316 Absorbed by Shields 2235 | . . . . . . 220 . . . . . . . . . . 56 581 138 765 252 223 Redirected to Shielding 52 | . . . . . . . . . . . . . . . . . . . . . 4 48 Ignored by Resistances 3339 | . . . . . . . . . . . . 57 . . . . . 64 . 1553 608 1057 Regen/Repaired (Parts) 872 | . 69 . . . 147 201 . . . . . . . . . . 6 189 11 127 73 49 Core Remaining (%) 58 | 100 . . . 11 92 . . . . 34 73 . . . . 57 . . . . 40 . Volleys Fired 767 | 7 81 . . 43 47 148 8 22 . 33 79 47 2 23 . 4 77 29 21 23 24 49 Largest 3 | 2 2 . . 2 2 2 1 2 . 2 2 2 2 2 . 1 3 3 3 3 3 3 Hottest 253 | 40 70 . . 76 86 140 55 139 . 139 160 171 130 162 . 43 250 218 218 205 253 234 Shots Fired 1457 | 14 162 . . 72 87 294 9 39 . 61 155 81 7 32 . 4 151 62 49 57 49 72 Gun 1220 | 14 162 . . 70 83 244 3 33 . 54 152 43 7 30 . . 90 59 45 32 46 53 Cannon 161 | . . . . . . 42 . . . . . 37 . 2 . . 55 . . 11 3 11 Launcher 76 | . . . . 2 4 8 6 6 . 7 3 1 . . . 4 6 3 4 14 . 8 Special . | . . . . . . . . . . . . . . . . . . . . . . . Kinetic 773 | 14 155 . . 29 39 191 . . . 4 120 15 . 14 . . 113 46 19 11 3 . Thermal 459 | . 7 . . 41 44 56 . 25 . 37 32 65 . . . . 12 3 26 1 46 64 Explosive 33 | . . . . 2 4 8 6 6 . 7 . . . . . . . . . . . . Electromagnetic 161 | . . . . . . 39 3 8 . 13 3 1 7 18 . 4 26 13 4 14 . 8 Entropic 31 | . . . . . . . . . . . . . . . . . . . . 31 . . Robot Hit Streak 32 | 7 9 . . 5 18 24 21 32 . 27 23 18 22 32 . 16 17 24 17 11 10 21 Robot Miss Streak 9 | 1 3 . . 5 4 3 . 2 . 9 3 3 . 3 . . 4 3 3 3 2 3 Penetration Max 1 | . . . . . . 1 . . . 1 1 . . . . . 1 1 . 1 . . Secondary Targets 15 | . 3 . . 1 . 5 . 1 . . 1 . . . . . . 2 . . 2 . Max Gunslinging Chain 1 | . 1 . . 1 . 1 . 1 . . 1 . . . . . . 1 . . 1 . Shots Hit Robots 1062 | 9 102 . . 42 75 212 7 29 . 41 125 69 5 26 . 3 106 56 29 37 39 50 Core Hits 614 | 5 39 . . 27 39 122 16 21 . 37 44 25 1 7 . 6 47 38 16 75 17 32 Critical Kills 6 | . 2 . . . 1 . . . . . 1 1 . 1 . . . . . . . . Critical Parts Destroyed 18 | . 1 . . . 5 1 . . . . 3 . . . . . 1 1 . 6 . . Critical Strikes 45 | . 5 . . 3 7 4 . 5 . 2 4 1 . 1 . . 2 3 . 6 1 1 Burn 16 | . 2 . . 3 1 3 . 5 . 2 . . . . . . . . . . . . Destroy 12 | . 3 . . . . 1 . . . . 4 1 . 1 . . 1 1 . . . . Blast 1 | . . . . . . . . . . . . . . . . . 1 . . . . . Smash 7 | . . . . . 6 . . . . . . . . . . . . . . . . 1 Sever 3 | . . . . . . . . . . . . . . . . . . 2 . . 1 . Detonate 6 | . . . . . . . . . . . . . . . . . . . . 6 . . Melee Attacks 57 | . . . . . 22 . . 1 . . 5 9 1 4 . . . 5 . . 6 4 Impact 31 | . . . . . 22 . . . . . . . 1 4 . . . . . . . 4 Slashing 25 | . . . . . . . . . . . 5 9 . . . . . 5 . . 6 . Piercing 1 | . . . . . . . . 1 . . . . . . . . . . . . . . Sneak Attacks 6 | . . . . . 4 . . . . . 1 . 1 . . . . . . . . . Combat Hostiles . | . . . . . . . . . . . . . . . . . . . . . . . Follow-up Attacks . | . . . . . . . . . . . . . . . . . . . . . . . Damage Inflicted 37196 | 91 1126 . . 841 2157 6133 657 1039 . 1531 2497 2677 167 533 . 201 3667 1967 832 7178 1311 2591 Guns 18752 | 91 1121 . . 571 979 3868 34 526 . 805 2250 781 87 511 . . 1860 1233 642 1211 947 1235 Cannons 3885 | . . . . . . 870 . . . . . 1218 . 22 . . 1416 . . 332 27 . Explosions 12399 | . . . . 262 332 1340 623 476 . 726 116 481 . . . 201 383 466 190 5635 . 1168 Melee 2032 | . . . . . 812 . . 27 . . 131 197 80 . . . . 268 . . 337 180 Ramming 128 | . 5 . . 8 34 55 . 10 . . . . . . . . 8 . . . . 8 Kinetic 11505 | 91 1069 . . 204 426 2943 . . . 57 1761 268 . 305 . . 2790 1019 213 332 27 . Thermal 11677 | . 52 . . 367 553 966 . 355 . 714 489 1990 . . . . 185 194 429 2828 947 1608 Explosive 3656 | . . . . 262 332 1340 623 476 . 623 . . . . . . . . . . . . Electromagnetic 7015 | . . . . . . 829 34 171 . 137 116 222 87 228 . 201 684 486 190 2835 . 795 Impact 1072 | . . . . . 812 . . . . . . . 80 . . . . . . . . 180 Slashing 933 | . . . . . . . . . . . 131 197 . . . . . 268 . . 337 . Piercing 27 | . . . . . . . . 27 . . . . . . . . . . . . . . Entropic 1183 | . . . . . . . . . . . . . . . . . . . . 1183 . . Highest Corruption 62 | . . . . 4 3 13 13 13 13 13 2 5 27 37 37 62 9 15 18 18 17 32 Average Corruption 13 | . . . . 4 2 2 13 13 13 13 1 4 24 33 37 37 5 11 15 16 17 27 Corruption Purged . | . . . . . . . . . . . . . . . . . . . . . . . Corruption Blocked 15 | . . . . . . . . . . . . . . . . . 15 . . . . . Effects 505 | . . . . 16 16 24 16 18 8 26 5 10 14 58 16 18 17 62 93 17 47 24 Message Errors 132 | . . . . 4 5 5 3 6 3 6 2 4 2 21 5 1 2 16 30 2 7 8 Matter Fused 127 | . . . . 4 1 8 8 2 2 7 2 3 3 12 4 7 3 13 24 6 14 4 Heat Flow Errors 49 | . . . . 3 . 3 . 1 1 1 . 1 2 6 1 5 2 5 12 2 4 . Energy Discharges 48 | . . . . . 3 . . 2 . 2 . 1 1 5 . 1 1 12 9 1 8 2 Parts Rejected 6 | . . . . . 1 1 . . . 1 . . . . . . 1 1 . . 1 . Parts Fused 4 | . . . . . . . . . . 1 . . . 2 . . 1 . . . . . Data Loss (minor) 63 | . . . . 5 1 3 2 4 1 6 1 . 1 5 5 4 1 8 7 2 4 3 Data Loss (major) 21 | . . . . . 2 1 1 . 1 1 . . 1 2 1 . 1 . 4 1 5 . Misfires 20 | . . . . . 1 2 1 2 . 1 . . 3 2 . . . 2 5 . 1 . Alerts 11 | . . . . . . . 1 . . . . . 1 1 . . 1 4 1 . . 2 Misdirections 4 | . . . . . . . . . . . . . . . . . . . . 1 . 3 Weapon Failures 20 | . . . . . 2 1 . 1 . . . 1 . 2 . . 4 1 1 2 3 2 Overload Shots . | . . . . . . . . . . . . . . . . . . . . . . . Overflow Damage 978 | . . . . 11 381 56 . . . 4 2 93 77 . . 7 61 24 10 146 97 9 Projectiles 141 | . . . . . . 30 . . . . . 50 . . . . 61 . . . . . Explosions 248 | . . . . 11 19 26 . . . 4 . . . . . 7 . 24 10 146 . 1 Melee 589 | . . . . . 362 . . . . . 2 43 77 . . . . . . . 97 8 Knockbacks 20 | . 1 . . . 2 1 . 1 . . . . . . . . 9 . . 3 1 2 Impact 7 | . 1 . . . 2 1 . 1 . . . . . . . . . . . . . 2 Kinetic 12 | . . . . . . . . . . . . . . . . . 8 . . 3 1 . Secondary 1 | . . . . . . . . . . . . . . . . . 1 . . . . . Self-Inflicted Damage 853 | . . . . 24 42 302 29 33 . 99 . 37 . . . 20 81 23 . 132 . 31 Shots 36 | . . . . 2 3 8 1 2 . 4 . 1 . . . 1 4 1 . 7 . 2 Rammed 18 | 1 3 . . 2 3 5 . 1 . . . . . . . . . . . . . 3 Targets Rammed 26 | 1 3 . . 2 5 8 . 3 . . . . . . . . 1 . . . . 3 Kicked 6 | . . . . . 2 3 . . . . . . . . . . 1 . . . . . Crushed 2 | . . . . . . . . 2 . . . . . . . . . . . . . . Highest Temperature 596 | . 87 . . 493 220 319 . 248 123 122 491 460 242 248 185 253 596 448 306 242 214 192 Average Temperature 110 | . 18 . . 137 74 93 . 86 62 22 271 130 137 89 98 97 139 105 102 109 40 80 Received Heat Transfer 5053 | . 294 . . 86 477 975 36 432 . 45 588 279 36 84 . . 246 215 24 730 210 296 Effects 44 | . . . . 3 . . . 4 . . 14 2 . . . . 16 1 3 . 1 . Shutdowns 15 | . . . . 2 . . . . . . 5 1 . . . . 6 1 . . . . Energy Bleed 6 | . . . . . . . . . . . 2 1 . . . . 2 . . . 1 . Interference 13 | . . . . . . . . 4 . . 1 . . . . . 5 . 3 . . . Matter Decay 1 | . . . . . . . . . . . 1 . . . . . . . . . . . Short Circuit 1 | . . . . . . . . . . . . . . . . . 1 . . . . . Damage (minor) 3 | . . . . 1 . . . . . . 1 . . . . . 1 . . . . . Damage (major) 5 | . . . . . . . . . . . 4 . . . . . 1 . . . . . Siege Activations . | . . . . . . . . . . . . . . . . . . . . . . . Robots Corrupted 17 | . . . . . . 2 . . . . . . 1 1 . . 4 . . 7 . 2 Combat Hostiles 17 | . . . . . . 2 . . . . . . 1 1 . . 4 . . 7 . 2 Parts Fried 62 | . . . . . 9 12 . . . . . . . 3 . 1 3 1 . 23 . 10 Impact Corruptions 15 | . . . . . 11 . . . . . . . 2 . . . . . . . . 2 Robots Melted 3 | . . . . . . . . 1 . . . . . . . . . 1 . . 1 . Combat Hostiles 3 | . . . . . . . . 1 . . . . . . . . . 1 . . 1 . Parts Melted 35 | . 2 . . 1 2 2 . 2 . 7 1 3 . . . . 1 2 3 . 8 1 Heat Transferred 14276 | . 296 . . 1184 1258 1702 . 999 . 1284 740 1042 . . . . 259 150 555 1695 1221 1891 Parts Sabotaged . | . . . . . . . . . . . . . . . . . . . . . . . Parts Stolen . | . . . . . . . . . . . . . . . . . . . . . . . Parts Stripped . | . . . . . . . . . . . . . . . . . . . . . . . Power Chain Reactions 13 | . . . . . . . . . . 1 . 4 . . . 1 . 1 . 4 . 2 Alert | -11 -10 -10 -10 -9 -8 -7 -7 -7 -7 -6 -6 -5 -5 -5 -5 -4 -4 -4 -4 -4 -3 -3 ------- Run | Yrd Mat Min Exi Min Mat Fac Low Low Dat Pro Fac Fac Upp Upp Zhi Pro Fac Upp Upp War Pro Res Peak Influence 898 | 15 265 95 . 69 383 898 . . . . 614 376 . . . . 346 . . . . 299 Initial 600 | . 9 80 . . . 173 . . . . 600 138 . . . . 69 . . . . 47 Average 232 | 3 161 75 . 32 176 432 . . . . 461 235 . . . . 139 . . . . 107 Maximum Alert Level 3 | . 1 . . . 1 3 . . . . 2 1 . . . . 1 . . . . 1 Low Security (%) 51 | 100 70 100 . 100 48 4 . . . . . 40 . . . . 75 . . . . 98 Level 1 33 | . 29 . . . 51 52 . . . . 42 59 . . . . 24 . . . . 1 Level 2 11 | . . . . . . 26 . . . . 57 . . . . . . . . . . . Level 3 3 | . . . . . . 16 . . . . . . . . . . . . . . . . Level 4 . | . . . . . . . . . . . . . . . . . . . . . . . Level 5 . | . . . . . . . . . . . . . . . . . . . . . . . High Security . | . . . . . . . . . . . . . . . . . . . . . . . Max Security . | . . . . . . . . . . . . . . . . . . . . . . . Squads Dispatched 37 | . 4 . . . 2 11 . . . . 7 4 . . . . 5 . . . . 4 Investigation 4 | . 2 . . . . 1 . . . . . . . . . . 1 . . . . . Extermination 9 | . . . . . . 2 . . . . 1 3 . . . . 2 . . . . 1 Reinforcement 18 | . 2 . . . 2 5 . . . . 3 1 . . . . 2 . . . . 3 Assault . | . . . . . . . . . . . . . . . . . . . . . . . Garrison 6 | . . . . . . 3 . . . . 3 . . . . . . . . . . . Intercept . | . . . . . . . . . . . . . . . . . . . . . . . Searches Triggered 2 | . . . . . . . . . . . 2 . . . . . . . . . . . Construction Impeded 2 | . . . . . . 1 . . . . . 1 . . . . . . . . . . Haulers Reinforced 5 | . . . . . . 2 . . . . 1 . . . . . 2 . . . . . Active Scanning Responses . | . . . . . . . . . . . . . . . . . . . . . . . Cargo Convoy Interrupts 1 | . . . . . . . . . . . . . . . . . 1 . . . . . Stealth | -11 -10 -10 -10 -9 -8 -7 -7 -7 -7 -6 -6 -5 -5 -5 -5 -4 -4 -4 -4 -4 -3 -3 --------- Run | Yrd Mat Min Exi Min Mat Fac Low Low Dat Pro Fac Fac Upp Upp Zhi Pro Fac Upp Upp War Pro Res Distress Signals 17 | . 2 . . . 4 3 . . . . 3 . . . . . 4 . . 1 . . Communications Jammed . | . . . . . . . . . . . . . . . . . . . . . . . Distress Signals . | . . . . . . . . . . . . . . . . . . . . . . . Times Spotted 375 | . 32 2 . 15 29 58 7 12 . 18 24 18 7 5 . 5 33 13 7 61 6 23 Peak Tracking Total 15 | . 3 2 . 7 7 5 7 4 . 6 4 6 7 2 . 5 5 7 3 15 3 10 Tactical Retreats 27 | . 7 . . . 4 5 . . . . 1 2 . 2 . . . . 1 3 . 2 Traps | -11 -10 -10 -10 -9 -8 -7 -7 -7 -7 -6 -6 -5 -5 -5 -5 -4 -4 -4 -4 -4 -3 -3 ------- Run | Yrd Mat Min Exi Min Mat Fac Low Low Dat Pro Fac Fac Upp Upp Zhi Pro Fac Upp Upp War Pro Res Traps Triggered 6 | . 1 . . . 1 3 . . . . . . . . . . . . . 1 . . Indirectly . | . . . . . . . . . . . . . . . . . . . . . . . Trap Hack Attempts . | . . . . . . . . . . . . . . . . . . . . . . . Triggered . | . . . . . . . . . . . . . . . . . . . . . . . Disarmed . | . . . . . . . . . . . . . . . . . . . . . . . Reprogrammed . | . . . . . . . . . . . . . . . . . . . . . . . Reused . | . . . . . . . . . . . . . . . . . . . . . . . Traps Extracted . | . . . . . . . . . . . . . . . . . . . . . . . Installed 8 | . . . . . . . . . . . . . . . . . . . 8 . . . Triggered 20 | . . . . . . . 1 . . . . . . . . . 2 . 2 15 . . Machines | -11 -10 -10 -10 -9 -8 -7 -7 -7 -7 -6 -6 -5 -5 -5 -5 -4 -4 -4 -4 -4 -3 -3 ---------- Run | Yrd Mat Min Exi Min Mat Fac Low Low Dat Pro Fac Fac Upp Upp Zhi Pro Fac Upp Upp War Pro Res Machines Disabled 21 | . 1 . . . 2 8 . . . . . 3 . . . . 3 1 . 1 . 2 Max in Single Turn 4 | . 1 . . . 1 4 . . . . . 1 . . . . 1 1 . 1 . 1 Machines Repaired . | . . . . . . . . . . . . . . . . . . . . . . . Machines Dismantled . | . . . . . . . . . . . . . . . . . . . . . . . Machines Sabotaged . | . . . . . . . . . . . . . . . . . . . . . . . Overloaded Fab Kills . | . . . . . . . . . . . . . . . . . . . . . . . Hacking | -11 -10 -10 -10 -9 -8 -7 -7 -7 -7 -6 -6 -5 -5 -5 -5 -4 -4 -4 -4 -4 -3 -3 --------- Run | Yrd Mat Min Exi Min Mat Fac Low Low Dat Pro Fac Fac Upp Upp Zhi Pro Fac Upp Upp War Pro Res Machines Accessed 52 | . 6 . . 2 4 10 . . 4 . 4 1 . 1 9 . 2 2 . 4 . 3 Terminals 21 | . 4 . . 1 3 5 . . . . 4 . . 1 . . . 1 . . . 2 Fabricators 3 | . . . . . . 1 . . . . . . . . . . 1 . . . . 1 Repair Stations 4 | . 1 . . . 1 2 . . . . . . . . . . . . . . . . Recycling Units 2 | . 1 . . . . . . . . . . 1 . . . . . . . . . . Scanalyzers 2 | . . . . . . 1 . . . . . . . . . . 1 . . . . . Garrison Access 1 | . . . . . . 1 . . . . . . . . . . . . . . . . Total Hacks 176 | . 16 . . 4 12 27 . . 25 . 7 2 . 2 48 . 13 3 . 11 . 6 Successful 139 | . 10 . . 2 7 17 . . 25 . 3 . . 2 48 . 10 3 . 11 . 1 Failed 37 | . 6 . . 2 5 10 . . . . 4 2 . . . . 3 . . . . 5 Catastrophic 9 | . 2 . . . 2 2 . . . . 2 . . . . . . . . . . 1 Database Lockouts . | . . . . . . . . . . . . . . . . . . . . . . . Manual 27 | . 10 . . 4 8 2 . . . . 2 . . . . . . . . 1 . . Terminals 47 | . 11 . . 3 7 10 . . . . 7 . . 2 . . . 2 . . . 5 Fabricators 17 | . . . . . . 4 . . . . . . . . . . 12 . . . . 1 Repair Stations 16 | . 3 . . . 5 8 . . . . . . . . . . . . . . . . Recycling Units 4 | . 2 . . . . . . . . . . 2 . . . . . . . . . . Scanalyzers 4 | . . . . . . 3 . . . . . . . . . . 1 . . . . . Garrison Access 2 | . . . . . . 2 . . . . . . . . . . . . . . . . Terminal Hacks 108 | . 5 . . 2 3 5 . . 25 . 3 . . 2 48 . . 3 . 11 . 1 Record 62 | . . . . . . . . . 11 . . . . 2 36 . . 2 . 10 . 1 Part Schematic 16 | . . . . . 3 . . . 8 . 1 . . . 4 . . . . . . . Robot Schematic 3 | . . . . . . . . . 3 . . . . . . . . . . . . . Robot Analysis 8 | . 3 . . 1 . . . . . . . . . . 4 . . . . . . . Prototype ID Bank 9 | . 1 . . . . 1 . . 3 . . . . . 4 . . . . . . . Open Door 3 | . . . . 1 . . . . . . . . . . . . . 1 . 1 . . Open DSF 1 | . . . . . . 1 . . . . . . . . . . . . . . . . Branch Access Points 1 | . . . . . . . . . . . 1 . . . . . . . . . . . Terminal Index 1 | . 1 . . . . . . . . . . . . . . . . . . . . . Locate Traps 3 | . . . . . . 2 . . . . 1 . . . . . . . . . . . Zone Layout 1 | . . . . . . 1 . . . . . . . . . . . . . . . . Fabricator Hacks 13 | . . . . . . 4 . . . . . . . . . . 9 . . . . . Load Schematic 6 | . . . . . . 2 . . . . . . . . . . 4 . . . . . Build 7 | . . . . . . 2 . . . . . . . . . . 5 . . . . . Repair Station Hacks 11 | . 2 . . . 4 5 . . . . . . . . . . . . . . . . Scan Component 6 | . 1 . . . 2 3 . . . . . . . . . . . . . . . . Repair 5 | . 1 . . . 2 2 . . . . . . . . . . . . . . . . Recycling Unit Hacks 2 | . 2 . . . . . . . . . . . . . . . . . . . . . Retrieve Matter 2 | . 2 . . . . . . . . . . . . . . . . . . . . . Scanalyzer 4 | . . . . . . 3 . . . . . . . . . . 1 . . . . . Insert Component 3 | . . . . . . 2 . . . . . . . . . . 1 . . . . . Analyze 1 | . . . . . . 1 . . . . . . . . . . . . . . . . Garrison Access Hacks . | . . . . . . . . . . . . . . . . . . . . . . . Unauthorized Hacks 1 | . 1 . . . . . . . . . . . . . . . . . . . . . Terminals 1 | . 1 . . . . . . . . . . . . . . . . . . . . . Botnet 1 | . 1 . . . . . . . . . . . . . . . . . . . . . Fabricators . | . . . . . . . . . . . . . . . . . . . . . . . Repair Stations . | . . . . . . . . . . . . . . . . . . . . . . . Recycling Units . | . . . . . . . . . . . . . . . . . . . . . . . Scanalyzers . | . . . . . . . . . . . . . . . . . . . . . . . Garrison Access . | . . . . . . . . . . . . . . . . . . . . . . . Data Cores Recovered . | . . . . . . . . . . . . . . . . . . . . . . . Used . | . . . . . . . . . . . . . . . . . . . . . . . Hacking Detections 30 | . 6 . . 1 4 9 . . . . 4 1 . . . . 1 1 . . . 3 Full Trace Events 4 | . 2 . . . . 1 . . . . . . . . . . 1 . . . . . Feedback Events . | . . . . . . . . . . . . . . . . . . . . . . . Feedback Blocked . | . . . . . . . . . . . . . . . . . . . . . . . Robot Schematics Acquired 3 | . . . . . . . . . 3 . . . . . . . . . . . . . Robots Built 3 | . . . . . . . . . . . . . . . . . 3 . . . . . Authchips 1 | . . . . . . . . . . . . . . . . . 1 . . . . . Time 93 | . . . . . . . . . . . . . . . . . 93 . . . . . Total Robot Build Rating 21 | . . . . . . . . . . . . . . . . . 21 . . . . . Part Schematics Acquired 17 | . . . . . 3 1 . . 8 . 1 . . . 4 . . . . . . . Parts Built 8 | . . . . . . 4 . . . . . . . . . . 4 . . . . . Authchips 5 | . . . . . . 2 . . . . . . . . . . 3 . . . . . Time 283 | . . . . . . 48 . . . . . . . . . . 235 . . . . . Total Part Build Rating 30 | . . . . . . 12 . . . . . . . . . . 18 . . . . . Parts Repaired 5 | . 1 . . . 2 2 . . . . . . . . . . . . . . . . Time 148 | . 26 . . . 52 70 . . . . . . . . . . . . . . . . Parts Recycled . | . . . . . . . . . . . . . . . . . . . . . . . Recycled Matter . | . . . . . . . . . . . . . . . . . . . . . . . Retrieved Matter . | . . . . . . . . . . . . . . . . . . . . . . . Retrieved Components . | . . . . . . . . . . . . . . . . . . . . . . . Parts Scanalyzed 1 | . . . . . . 1 . . . . . . . . . . . . . . . . Part Schematics Acquired 1 | . . . . . . 1 . . . . . . . . . . . . . . . . Parts Damaged 1 | . . . . . . 1 . . . . . . . . . . . . . . . . Bothacking | -11 -10 -10 -10 -9 -8 -7 -7 -7 -7 -6 -6 -5 -5 -5 -5 -4 -4 -4 -4 -4 -3 -3 ------------ Run | Yrd Mat Min Exi Min Mat Fac Low Low Dat Pro Fac Fac Upp Upp Zhi Pro Fac Upp Upp War Pro Res Used RIF Installer . | . . . . . . . . . . . . . . . . . . . . . . . Robots Hacked . | . . . . . . . . . . . . . . . . . . . . . . . Non-combat . | . . . . . . . . . . . . . . . . . . . . . . . Combat . | . . . . . . . . . . . . . . . . . . . . . . . Robot Hacks Applied . | . . . . . . . . . . . . . . . . . . . . . . . Relay Couplers Released 4 | . . . . . . 4 . . . . . . . . . . . . . . . . Programmers 4 | . . . . . . 4 . . . . . . . . . . . . . . . . Fabnet Peak Effective % . | . . . . . . . . . . . . . . . . . . . . . . . Robots Rewired 4 | . . . . . . . . . . . . . . . . . . . . 4 . . Allies Hacked 1 | . . . . . . . . . . . . . . . . . 1 . . . . . Hacks Repelled . | . . . . . . . . . . . . . . . . . . . . . . . Allies | -11 -10 -10 -10 -9 -8 -7 -7 -7 -7 -6 -6 -5 -5 -5 -5 -4 -4 -4 -4 -4 -3 -3 -------- Run | Yrd Mat Min Exi Min Mat Fac Low Low Dat Pro Fac Fac Upp Upp Zhi Pro Fac Upp Upp War Pro Res Total Allies 8 | . . . . 1 . . . . . . . . . . . . 3 . . 4 . . Largest Group 3 | . . . . 1 . . . . . . . . . . . . 3 . . 3 . . Highest-Rated Group 155 | . . . . 31 . . . . . . . . . . . . 144 . . 155 . . Highest-Rated Ally 65 | . . . . 31 . . . . . . . . . . . . 48 . . 65 . . Total Orders 4 | . . . . . . . . . . . . . . . . . 2 . . 2 . . ROAM 4 | . . . . . . . . . . . . . . . . . 2 . . 2 . . Ally Attacks 43 | . . . . . . . . . . . . . . . . . 40 . . 3 . . Total Damage 1027 | . . . . . . . . . . . . . . . . . 861 . . 166 . . Kills 4 | . . . . . . . . . . . . . . . . . 4 . . . . . Allies Corrupted . | . . . . . . . . . . . . . . . . . . . . . . . Allies Melted 4 | . . . . . . . . . . . . . . . . . . . . 4 . . Intel | -11 -10 -10 -10 -9 -8 -7 -7 -7 -7 -6 -6 -5 -5 -5 -5 -4 -4 -4 -4 -4 -3 -3 ------- Run | Yrd Mat Min Exi Min Mat Fac Low Low Dat Pro Fac Fac Upp Upp Zhi Pro Fac Upp Upp War Pro Res Robot Analysis Total 8 | . 3 . . 1 . . . . . . . . . . 4 . . . . . . . Derelict Logs Recovered 8 | . . 1 . 1 . . 1 . . 1 . . . 1 . 1 . 1 1 . . . Drone Launches 17 | . . . . . . . . . . . . . . . . . 17 . . . . . Drone Recoveries 1 | . . . . . . . . . . . . . . . . . 1 . . . . . Exploration | -11 -10 -10 -10 -9 -8 -7 -7 -7 -7 -6 -6 -5 -5 -5 -5 -4 -4 -4 -4 -4 -3 -3 ------------- Run | Yrd Mat Min Exi Min Mat Fac Low Low Dat Pro Fac Fac Upp Upp Zhi Pro Fac Upp Upp War Pro Res Turns Passed 21540 | 96 1496 499 1007 818 1193 2217 450 471 168 650 937 773 314 1135 399 361 1277 1599 2171 1630 1045 834 Spaces Moved 8760 | 39 511 204 420 313 482 900 262 231 99 320 399 285 189 644 233 147 300 599 866 579 234 504 Core 74 | 5 . . . . . . . . . . . 15 . . . . . . . . . 54 Treads 7445 | 32 511 204 420 223 235 741 262 231 99 320 271 21 162 644 233 147 241 599 866 579 234 170 Legs 343 | 2 . . . . 194 132 . . . . . . . . . . 15 . . . . . Wheels 477 | . . . . 90 53 27 . . . . 128 135 . . . . 44 . . . . . Hover 411 | . . . . . . . . . . . . 114 27 . . . . . . . . 270 Flight 10 | . . . . . . . . . . . . . . . . . . . . . . 10 Fastest Speed 44 | 50 160 240 240 115 98 115 165 165 165 165 130 104 44 160 160 160 160 240 240 240 320 45 Average Speed 200 | 147 232 240 240 208 174 171 165 165 165 166 154 187 147 160 160 232 215 241 240 245 390 124 Slowest Speed 1150 | 190 240 240 240 480 330 410 165 165 165 170 240 1150 240 160 160 240 560 480 240 480 480 570 Overloaded Moves . | . . . . . . . . . . . . . . . . . . . . . . . Propulsion Burnouts . | . . . . . . . . . . . . . . . . . . . . . . . Robots Hopped 4 | . . . . . . . . . . . . . . . . . . . . . . 4 Cave-ins Triggered 1 | . . . . . . . . . . . . . . . . . . . . 1 . . Teleports 1 | . . . . . . . . . . . . . . . . . . . . 1 . . Exploration Rate (%) 50 | 5 78 50 76 74 32 26 47 45 72 56 13 7 50 80 62 44 13 74 95 85 63 14 Regions Visited 22 Branch Regions 15 Pre-discovered Areas 7 | . . . . 1 . . 1 . 1 . . . . . 3 1 . . . . . . Known Exits Taken 4 | . . 1 1 . . . . . . . . 1 . . . . . 1 . . . . Unknown Exits Taken 18 | 1 1 . . 1 1 1 1 1 1 1 1 . 1 1 1 1 1 . 1 1 1 . Scrap Searched 20 | . . . . 3 . . 2 2 . . . . 3 2 . 2 . 1 3 . 2 . Spaces Dug 18 | . . . . . . . . . . . 3 . . 4 . . . . . . . 11 Terrain Destroyed 390 | . . . . 18 15 71 29 11 . 29 9 65 . 4 . 4 12 18 5 68 8 24 Melee 8 | . . . . . . . . . . . 3 . . 4 . . . . . . . 1 Projectile 94 | . . . . . . 2 . . . . 6 9 . . . . 12 9 5 33 8 10 AOE 288 | . . . . 18 15 69 29 11 . 29 . 56 . . . 4 . 9 . 35 . 13 Terrain Rammed . | . . . . . . . . . . . . . . . . . . . . . . . Walls Destroyed . | . . . . . . . . . . . . . . . . . . . . . . . Machines Disabled . | . . . . . . . . . . . . . . . . . . . . . . . Actions | -11 -10 -10 -10 -9 -8 -7 -7 -7 -7 -6 -6 -5 -5 -5 -5 -4 -4 -4 -4 -4 -3 -3 --------- Run | Yrd Mat Min Exi Min Mat Fac Low Low Dat Pro Fac Fac Upp Upp Zhi Pro Fac Upp Upp War Pro Res Total 11200 | 61 674 215 421 406 706 1277 271 279 104 373 554 420 220 704 259 158 785 699 924 740 309 641 Wait 686 | 1 38 3 . 11 84 94 . 7 . 4 24 11 3 . 3 . 332 1 8 5 10 47 Move 8731 | 38 510 203 419 312 481 899 261 230 98 319 398 284 188 643 232 146 299 598 865 578 233 497 Hop 3 | . . . . . . . . . . . . . . . . . . . . . . 3 Pick Up 150 | 5 19 2 . 7 12 21 . 3 . 3 7 9 6 6 2 . 19 15 2 5 . 7 Fast Attach 201 | 8 3 1 . 4 17 27 . 1 2 4 8 25 4 11 11 2 17 7 7 16 11 15 Attach 96 | . . . . 9 9 6 . 2 . 4 5 8 4 2 . . 12 7 . 9 10 9 Detach 36 | 1 . . . 4 2 1 . 1 1 1 1 7 2 . 1 . 2 1 . 5 4 2 Swap 134 | . 8 2 1 6 10 25 2 6 1 4 15 5 3 7 . 5 11 8 3 8 2 2 Drop 227 | . 12 4 1 8 17 48 . 3 2 1 12 15 7 8 10 1 15 20 10 21 9 3 Fire 767 | 7 81 . . 43 47 148 8 22 . 33 79 47 2 23 . 4 77 29 21 23 24 49 Melee 57 | . . . . . 22 . . 1 . . 5 9 1 4 . . . 5 . . 6 4 Ram 3 | . . . . . . . . . . . . . . . . . . . . . . 3 Kick 6 | . . . . . 2 3 . . . . . . . . . . 1 . . . . . Crush 17 | 1 3 . . 2 3 5 . 3 . . . . . . . . . . . . . . Escape Stasis . | . . . . . . . . . . . . . . . . . . . . . . . Rewire 78 | . . . . . . . . . . . . . . . . . . 8 . 70 . . Trap 8 | . . . . . . . . . . . . . . . . . . . 8 . . . Miscellaneous . | . . . . . . . . . . . . . . . . . . . . . . . Route ------- -11/Scrapyard -10/Materials (discovered 4 exits: *Mat x2 / [*Min x2]) -10/Mines (discovered 3 exits: *Mat x2 / *Exi) -10/Exiles -9/Mines -8/Materials -7/Factory -7/Lower Caves -7/Lower Caves (discovered 2 exits: *Fac / *Dat) -7/Data Miner -6/Proximity Caves -6/Factory (discovered 4 exits: *Fac x2 / *Low x2) -5/Factory (discovered 2 exits: *Fac / *Upp) -5/Upper Caves -5/Upper Caves (discovered 2 exits: *Fac / *Zhi) -5/Zhirov -4/Proximity Caves -4/Factory -4/Upper Caves -4/Upper Caves (discovered 2 exits: *Res / *War) -4/Warlord -3/Proximity Caves -3/Research History --------- Turn | Location | Event 23 | -11/Scrapyard | Discovered new exit (range 15) 97 | -11/Scrapyard | Entered Materials 307 | -10/Materials | Build established: Mutant 441 | -10/Materials | Discovered new exit (range 13) 749 | -10/Materials | Repaired Lgt. Treads 819 | -10/Materials | Discovered new exit (range 13) 1108 | -10/Materials | Discovered new exit (range 10) 1219 | -10/Materials | Discovered new exit (range 16) 1593 | -10/Materials | Entered Mines 1610 | -10/Mines | Discovered new exit (range 5) 1622 | -10/Mines | Joined a pair of Derelicts in attacking an 0b10 outpost 1638 | -10/Mines | Met a Derelict bent on vengeance 1705 | -10/Mines | Identified exit to Materials 1861 | -10/Mines | Discovered exit to Materials (range 5) 1988 | -10/Mines | Build established: Scavenger-Mutant 2082 | -10/Mines | Deemed a non-threat by the Exiles lab entrance 2082 | -10/Mines | Discovered new exit (range 5) 2089 | -10/Mines | Identified exit to Exiles 2092 | -10/Mines | Entered Exiles 2150 | -10/Exiles | Met 8R-AWN 2191 | -10/Exiles | Met EX-HEX 2343 | -10/Exiles | Met EX-DEC 2385 | -10/Exiles | Visited The Gauntlet 2624 | -10/Exiles | Discovered new exit (range 14) 2653 | -10/Exiles | Identified exit to Mines 2845 | -10/Exiles | Met EX-BIN 3099 | -10/Exiles | Entered Mines 3239 | -9/Mines | Assembled infested the area 3244 | -9/Mines | Assisted by a Guerilla fighting off Assembled 3303 | -9/Mines | Destroyed 7 combat bots 3346 | -9/Mines | Received a Mining Laser from a helpful Derelict 3447 | -9/Mines | Found a damaged Exp. Sensor Array with a note attached 3452 | -9/Mines | Found Prototype Device 3453 | -9/Mines | Identified Exp. Sensor Array 3533 | -9/Mines | Build established: Mutant 3716 | -9/Mines | Core integrity fell below 50% 3754 | -9/Mines | Core integrity fell below 20% 3798 | -9/Mines | Lost 7 parts (3n2u2w) 3863 | -9/Mines | Found the Drone Emporium 3869 | -9/Mines | Found Prototype Device 3900 | -9/Mines | Discovered new exit (range 13) 3917 | -9/Mines | Entered Materials 3917 | -8/Materials | Evolved 4 slots: Propulsion x2, Utility x2 3918 | -8/Materials | Identified Bomb Drone Bay 4051 | -8/Materials | Lost 5 parts (1p4n) 4213 | -8/Materials | Repaired Lgt. Treads 4242 | -8/Materials | Repaired Lgt. Treads 4948 | -8/Materials | Build established: Scavenger-Mutant 4977 | -8/Materials | Discovered new exit (range 15) 5110 | -8/Materials | Entered Factory 5110 | -7/Factory | Evolved 2 slots: Propulsion x1, Utility x1 5159 | -7/Factory | Repaired Autogun 5534 | -7/Factory | Fabricated Arm. Treads (x2) 5569 | -7/Factory | Fabricated Arm. Treads? 5873 | -7/Factory | Assembled infested ambush trap array 5964 | -7/Factory | Destroyed 14 combat bots 6023 | -7/Factory | Build established: Fabricator-Mutant 6668 | -7/Factory | Garrison activated, responded to threat 7110 | -7/Factory | Repaired Adv. Treads 7244 | -7/Factory | Build established: Scavenger-Mutant 7255 | -7/Factory | Discovered new exit (range 15) 7301 | -7/Factory | System corruption reached 10% 7327 | -7/Factory | Entered Lower Caves 7492 | -7/Lower Caves | Learned location of Extension (-4) 7610 | -7/Lower Caves | Core integrity fell below 50% 7640 | -7/Lower Caves | Destroyed 8 combat bots 7662 | -7/Lower Caves | Spotted B-75 Beast 7754 | -7/Lower Caves | Discovered new exit (range 15) 7777 | -7/Lower Caves | Entered another Lower Caves area 7851 | -7/Lower Caves | Discovered new exit (range 8) 8212 | -7/Lower Caves | Discovered new exit (range 10) 8248 | -7/Lower Caves | Entered Data Miner 8248 | -7/Data Miner | Discovered new exit (range 6) 8281 | -7/Data Miner | Met Data Miner 8321 | -7/Data Miner | Learned location of Section 7 (-3) 8321 | -7/Data Miner | Acquired the access code to Warlord's prototype stash 8351 | -7/Data Miner | Received God Mode back door access code from Data Miner 8416 | -7/Data Miner | Entered Proximity Caves 8520 | -6/Proximity Caves | Lost 3 parts (1n1u1w) 8523 | -6/Proximity Caves | Spotter reported a threat 8528 | -6/Proximity Caves | Spotter reported a threat 8562 | -6/Proximity Caves | Attacked by a faux Warlord 8629 | -6/Proximity Caves | Spotter reported a threat 8661 | -6/Proximity Caves | Spotter reported a threat 8701 | -6/Proximity Caves | Attracted the attention of an 0b10 checkpoint 9038 | -6/Proximity Caves | Discovered new exit (range 13) 9066 | -6/Proximity Caves | Entered Factory 9066 | -6/Factory | Evolved 2 slots: Power x1, Utility x1 9139 | -6/Factory | Found Launcher Loader 9167 | -6/Factory | Discovered new exit (range 3) 9183 | -6/Factory | Discovered new exit (range 12) 9416 | -6/Factory | Search patrols dispatched 9489 | -6/Factory | Identified exit to Lower Caves 9766 | -6/Factory | Search patrols dispatched 9786 | -6/Factory | Garrison activated, responded to threat 9959 | -6/Factory | Discovered new exit (range 5) 10003 | -6/Factory | Entered another Factory area 10003 | -5/Factory | Evolved 2 slots: Power x1, Propulsion x1 10004 | -5/Factory | Identified exit to Upper Caves 10027 | -5/Factory | Lost 3 parts (1p1n1w) 10082 | -5/Factory | Discovered new exit (range 12) 10175 | -5/Factory | Lost 7 parts (1p3n2u1w) 10295 | -5/Factory | Lost 4 parts (3p1u) 10561 | -5/Factory | Lost 6 parts (2p2n1u1w) 10776 | -5/Factory | Entered Upper Caves 10795 | -5/Upper Caves | Attracted the attention of an 0b10 checkpoint 10803 | -5/Upper Caves | System corruption reached 10% 11045 | -5/Upper Caves | Discovered new exit (range 19) 11084 | -5/Upper Caves | Attracted the attention of an 0b10 outpost 11090 | -5/Upper Caves | Entered another Upper Caves area 11106 | -5/Upper Caves | Discovered new exit (range 5) 11373 | -5/Upper Caves | System corruption reached 30% 11558 | -5/Upper Caves | Spotted B-75 Beast 11615 | -5/Upper Caves | Learned Factory terminal intel 12110 | -5/Upper Caves | Destroyed B-75 Beast 12132 | -5/Upper Caves | Lost 4 parts (2n1u1w) 12182 | -5/Upper Caves | Discovered new exit (range 20) 12225 | -5/Upper Caves | Entered Zhirov 12226 | -5/Zhirov | Discovered new exit (range 3) 12290 | -5/Zhirov | Learned location of Quarantine (-3) 12290 | -5/Zhirov | Learned location of Testing (-2) 12290 | -5/Zhirov | Learned location of Command (-1) 12371 | -5/Zhirov | Found Alien Artifact 12371 | -5/Zhirov | Identified Integrated Dissipator 12371 | -5/Zhirov | Installed Integrated Dissipator, increased core heat dissipation (+20) 12410 | -5/Zhirov | Found Alien Artifact 12624 | -5/Zhirov | Entered Proximity Caves 12943 | -4/Proximity Caves | Discovered new exit (range 17) 12985 | -4/Proximity Caves | Entered Factory 12985 | -4/Factory | Evolved 2 slots: Utility x1, Weapon x1 12986 | -4/Factory | Loaded intel: 28 terminal locations 13178 | -4/Factory | Found Imp. Powered Armor 13182 | -4/Factory | Found Imp. Powered Armor 13186 | -4/Factory | Found Imp. Powered Armor 13304 | -4/Factory | Fabricated L-61 Swordsman (x3) 13364 | -4/Factory | Fabricated Imp. Arc Thrower (x1) 13441 | -4/Factory | Fabricated Lgt. Regenerative Plating (x1) 13462 | -4/Factory | Build established: Scavenger-Tank 13518 | -4/Factory | Fabricated Lgt. Regenerative Plating (x1) 13544 | -4/Factory | Fabricated Huge Storage Unit (x1) 13670 | -4/Factory | Lost 3 allies 13755 | -4/Factory | Lost 3 parts (2n1u) 13860 | -4/Factory | Cargo convoy interrupted 13965 | -4/Factory | Identified Transdimensional Reconstructor 13978 | -4/Factory | Discovered new exit (range 13) 14070 | -4/Factory | Found Prototype Launcher 14070 | -4/Factory | Identified Com. Tesla Bomb Launcher 14076 | -4/Factory | Found Faulty Com. Tesla Bomb Launcher 14145 | -4/Factory | Lost 5 parts (1n3u1w) 14146 | -4/Factory | Build established: Scavenger-Gunner 14176 | -4/Factory | Lost 15 allies 14262 | -4/Factory | Entered Upper Caves 14931 | -4/Upper Caves | Encountered a Warlord checkpoint 14980 | -4/Upper Caves | Identified exit to Upper Caves 15029 | -4/Upper Caves | Build established: Scavenger-Mutant 15142 | -4/Upper Caves | System corruption reached 10% 15333 | -4/Upper Caves | Build established: Scavenger-Gunner 15347 | -4/Upper Caves | Attracted the attention of an 0b10 base 15424 | -4/Upper Caves | Lost 4 parts (1p1n1u1w) 15641 | -4/Upper Caves | Build established: Scavenger-Tank 15861 | -4/Upper Caves | Entered another Upper Caves area 16122 | -4/Upper Caves | Learned Research garrison access intel 17024 | -4/Upper Caves | Discovered new exit (range 10) 17935 | -4/Upper Caves | Attracted the attention of an 0b10 checkpoint 17948 | -4/Upper Caves | Discovered new exit (range 8) 18032 | -4/Upper Caves | Entered Warlord 18117 | -4/Warlord | System corruption cleaned by Quarantine Array 18520 | -4/Warlord | Met Warlord 18545 | -4/Warlord | Warlord's base attacked by MAIN.C 18556 | -4/Warlord | Opened Warlord's prototype stash 18564 | -4/Warlord | Found Prototype Reactor 18564 | -4/Warlord | Identified Vortex Chain Reactor 18602 | -4/Warlord | Found Prototype Device 18602 | -4/Warlord | Identified Thermal Barrier 18895 | -4/Warlord | Warlord forces counterattacked 19192 | -4/Warlord | Found Prototype Energy Gun 19192 | -4/Warlord | Identified Vortex Rail 19207 | -4/Warlord | Found Vortex Rail 19220 | -4/Warlord | Warlord base infiltrated, sounded retreat 19431 | -4/Warlord | Spotted Striker 19436 | -4/Warlord | Spotted Executioner 19446 | -4/Warlord | Destroyed Executioner 19459 | -4/Warlord | Destroyed Striker 19480 | -4/Warlord | Destroyed 10 combat bots 19496 | -4/Warlord | Crushed by falling debris 19502 | -4/Warlord | Spotted Executioner 19525 | -4/Warlord | Spotted Executioner 19529 | -4/Warlord | Warped through subspace 19540 | -4/Warlord | Destroyed 11 combat bots 19540 | -4/Warlord | Spotted Striker 19550 | -4/Warlord | Core integrity fell below 50% 19555 | -4/Warlord | Destroyed Striker 19559 | -4/Warlord | Spotted Executioner 19564 | -4/Warlord | Spotted Striker 19564 | -4/Warlord | Destroyed Executioner 19585 | -4/Warlord | Destroyed Striker 19605 | -4/Warlord | Discovered new exit (range 13) 19606 | -4/Warlord | Destroyed 14 combat bots 19644 | -4/Warlord | Lost 9 parts (5n2u2w) 19662 | -4/Warlord | Entered Proximity Caves 19796 | -3/Proximity Caves | Build established: Mutant 20217 | -3/Proximity Caves | Build established: Tank 20522 | -3/Proximity Caves | Build established: Mutant 20600 | -3/Proximity Caves | Discovered new exit (range 18) 20627 | -3/Proximity Caves | Attracted the attention of an 0b10 checkpoint 20707 | -3/Proximity Caves | Entered Research 20707 | -3/Research | Evolved 2 slots: Utility x2 20708 | -3/Research | Loaded intel: 4 garrison access locations 21008 | -3/Research | Build established: Derelict-Mutant 21122 | -3/Research | Destroyed 7 combat bots 21201 | -3/Research | System corruption reached 10% 21218 | -3/Research | System corruption reached 30% 21250 | -3/Research | Lost 9 parts (2p2n2u3w) 21259 | -3/Research | Released all parts (12) 21290 | -3/Research | Lost 4 parts (1p1n2u) 21455 | -3/Research | Build established: Mutant 21482 | -3/Research | Core integrity fell below 50% 21532 | -3/Research | Core integrity fell below 20% 21541 | -3/Research | Destroyed by H-77 Assassin with High-powered Shotgun Last Messages --------------- cycle. 21530_ Nova Cannon destroyed. 21531_ Penetrated by Slug. 21532_ Identified Impulse Thruster Array. 21534_ Penetrated by Slug. 21534_ Slug penetrates Earth. 21534_ Penetrated by Slug. 21535_ System corrupted: Component data lost. 21536_ The unstable cave ceiling collapses. 21536_ H-77 Assassin crushed by falling debris. 21536_ Slug penetrates Earth. 21537_ Knocked back. 21537_ Impulse Thruster Array destroyed. 21538_ Penetrated by Slug. 21538_ Slug penetrates Earth. 21538_ Slammed into H-77 Assassin. 21539_ Destabilizing: Core damaged (-26). 21540_ Slammed into H-77 Assassin. 21541_ Penetrated by Slug. [Achievement: Tester] Map ----- +----------------------------------------------------+ | #???????????????????????????????????????? | | """ #???????????????????????????????????????? | | """ ""#???????????????????????????????????????? | | """ ""#???????????????????????????????????????? | | """ ""#???????????????????????????????????????? | | """ T"#???????????????????????????????????????? | | """ """#???????????????????????????????????????? | | """ "" #???????????????????????????????????????? | | #???????????????????????????????????????? | | #???????????????????????????????????????? | | #???????????????????????????????????????? | | ##/######??????????????????????????????????? | | # #??????????????????????????????????? | | ## # #??????????????????????????????????? | | ?# # #??????????????????????????????????? | | ?# # #??????????????????????????????????? | | ?# # """ #??????????????????????????????????? | | ?# # """ #??????????????????????????????????? | | ?# # R" #??????????????????????????????????? | | ?# + """ ########???????????????????????????? | | ?# # "" " # # ###?????????????????????????? | | ?# # # ## #h##???????????????????????? | | ?# # ####### b #???????????????????????? | | ## #######"#?????## #???????????????????????? | | # # #?????# gg##??????????????????????? | | # # #?????## ##@#??????????????????????? | | # #??????## #h#?????????????????????? | | # + #???????######?????????????????????? | | # ! # "#??????????????????????????????????? | | # # "#??????????????????????????????????? | | ### ### "#??????????????????????????????????? | | ??# #?# T#??????????????????????????????????? | | ??# #?# "#??????????????????????????????????? | | ??# T## "#??????????????????????????????????? | | ??# ## "#??????????????????????????????????? | | ?? ### #??????????????????????????????????? | | ? #?# #??????????????????????????????????? | | ######?#/######??????????????????????????????????? | | ???????# #???????????????????????????????????????? | | ##?????# #???????????????????????????????????????? | | #?????# #???????????????????????????????????????? | | #?#####"##??????????????????????????????????????? | | [#?# #??????????????????????????????????????? | | #?# #??????????????????????????????????????? | | #### #??????????????????????????????????????? | | # #??????????????????????????????????????? | | # #??????????????????????????????????????? | | # #??????????????????????????????????????? | | ###/####??????????????????????????????????????? | | + #?????????????????????????????????????????? | +----------------------------------------------------+ Best States ------------- Heat Dissipation 104 Coolant Potential 180 Energy Generation 69 Energy Capacity 1115 Matter Stores 300 Matter Capacity 300 Sight Range 22 Terrain Scan Range 16 Terrain Scan Density 10 Armor Coverage 950 Resistance: KI 30 Resistance: TH 50 Core Shielding 40 Weapon Cycling 20 Phase Shifting 10 Evasion (%) 56 Targeting Accuracy 14 Armor Integrity Analysis 30 Recoil Reduction 6 Kinecelleration 40 Salvage Targeting 2 Defensive Hacking 11 Authchip Count 6 Item Schematics ----------------- Arm. Treads | -8/Materials | Hacked Hvy. Armor Plating | -8/Materials | Hacked Lrn. Tractor Beam | -8/Materials | Hacked Exp. Sensor Array | -7/Factory | Scanalyzed Combat Drone Bay | -7/Data Miner | Free Lgt. Regenerative Plating | -7/Data Miner | Free Cld. Cesium-ion Thruster | -7/Data Miner | Free Exp. Power Shielding | -7/Data Miner | Free Com. Ion Cannon | -7/Data Miner | Free Field Propulsion Drive | -7/Data Miner | Free Point Defense System | -7/Data Miner | Free Disruptor Cannon | -7/Data Miner | Free Huge Storage Unit | -6/Factory | Hacked Assault Drone Bay | -5/Zhirov | Free Exp. Heat Sink | -5/Zhirov | Free Exp. Optical Array | -5/Zhirov | Free Imp. Arc Thrower | -5/Zhirov | Free Robot Schematics ------------------ G-50 Soldier | -7/Data Miner | Free B-48 Gladiator | -7/Data Miner | Free S-27 Virus | -7/Data Miner | Free Fabricated ------------ Arm. Treads | x2 | -7/Factory | Authchip Arm. Treads | x2 | -7/Factory | Authchip L-61 Swordsman | x3 | -4/Factory | Preloaded, Authchip Imp. Arc Thrower | x1 | -4/Factory | Authchip Lgt. Regenerative Plating | x1 | -4/Factory | Authchip Lgt. Regenerative Plating | x1 | -4/Factory | Authchip Huge Storage Unit | x1 | -4/Factory Alien Tech Used ----------------- Integrated Dissipator Transdimensional Reconstructor Achievements -------------- Backstab Can't Touch This Tank Tester Z1$+NX3F=JRE3_ZNQR Challenges ------------ None Game ------ Seed EnergyAngularInitializer Manual? 0 Play Time 03:47:18 Cumulative 57.0 hours Start 2024.08.01 @ 04:08:38 End 2024.08.02 @ 01:35:46 Sessions 3 Manual Loads 0 Difficulty Rogue Special Mode None Game No. 27 Rogue 27 Adventurer 0 Explorer 0 Win Type - Total 3 Types 1/0/0/2/0/0/0/0/0 Lore% 49 Gallery% 52 Achievement% 42 Wizard Run 0 Options --------- Layout 1 ASCII 0 Keyboard 0 Movement Numpad Keybinds 0 Fullscreen 1 Font 32/Tamsyn Map View 50x40 Zoom Use 0% Tactical HUD 1 Map Filters NONE Filters NONE Steam 1 RUN: d7c83abb-7a85-4ec3-8dca-500245c14f62